[Event "74th ARM-ch Women 2019"]
[Site "Yerevan"]
[Date "2019.01.13"]
[Round "2"]
[White "Mkrtchyan, Mariam"]
[Black "Avetisyan, Mariam"]
[Result "0-1"]
[ECO "E06"]
[WhiteElo "2098"]
[BlackElo "2106"]
[Annotator "NA"]
[PlyCount "64"]
[EventDate "2019.01.12"]
[EventType "tourn"]
[EventCountry "ARM"]
[SourceTitle "playchess.com"]
[Source "ChessBase"]
[SourceQuality "1"]
[TimeControl "40/5400+30:1800+30"]

1. d4 {[%emt 0:00:00]} d5 {[%emt 0:00:00]} 2. c4 {[%emt 0:00:00]} e6 {[%emt 0:00:00]} 3. Nf3 {[%emt 0:00:01]} Nf6 {[%emt 0:00:53]} 4. g3 {[%emt 0:00:17]} Be7 {[%emt 0:01:20]} 5. Bg2 {[%emt 0:00:07]} O-O {[%emt 0:00:17]} 6. O-O {[%emt 0:00:24]} dxc4 {[%emt 0:00:37]} 7. Qc2 {[%emt 0:00:05]} a6 {[%emt 0:06:39]} 8. a4 {[%emt 0:00:27]} Bd7 {[%emt 0:01:14]} 9. Rd1 {[%emt 0:06:54]} Bc6 {[%emt 0:03:58]} 10. Nc3 {[%emt 0:02:43]} Bb4 {[%emt 0:24:06]} 11. Bg5 {[%emt 0:03:18]} Bxc3 {[%emt 0:04:33]} 12. Bxf6 {[%emt 0:10:06]} Qxf6 {[%emt 0:03:34]} 13. bxc3 {[%emt 0:01:57]} Nd7 {[%emt 0:08:45]} 14. e4 {[%emt 0:10:54]} b5 {[%emt 0:08:16]} 15. h4 {[%emt 0:05:58]} Qg6 {[%emt 0:03:04]} 16. Ne1 {[%emt 0:09:07]} Nf6 {[%emt 0:07:03]} 17. d5 {[%emt 0:04:52]} exd5 {[%emt 0:03:37]} 18. exd5 {[%emt 0:00:11]} Bd7 {[%emt 0:01:40]} 19. Qxg6 {[%emt 0:05:33]} fxg6 {[%emt 0:00:11]} 20. Nc2 {[%emt 0:08:57]} bxa4 21. Ne3 {[%emt 0:05:14]} Bb5 {[%emt 0:11:41]} 22. Rd4 {[%emt 0:01:00]} Rad8 {[%emt 0:01:12]} 23. Rad1 {[%emt 0:04:05]} a3 {[%emt 0:01:19]} 24. Nxc4 {[%emt 0:04:38]} c5 {[%emt 0:00:06]} 25. Rf4 {[%emt 0:02:39]} a2 {[%emt 0:00:43]} 26. Ne3 {[%emt 0:02:06]} Rb8 {[%emt 0:02:04]} 27. Bf1 {[%emt 0:11:14]} Bxf1 {[%emt 0:04:46]} 28. Rxf1 {[%emt 0:00:36]} Nxd5 {[%emt 0:00:51]} 29. Rxf8+ {[%emt 0:00:05]} Kxf8 {[%emt 0:00:03]} 30. c4 {[%emt 0:00:54]} Nxe3 {[%emt 0:00:25]} 31. fxe3+ {[%emt 0:00:05]} Ke7 {[%emt 0:00:06]} 32. Kg2 {[%emt 0:00:06]} Rb1 {[%emt 0:00:06]} 0-1

[Event "74th ARM-ch Women 2019"]
[Site "Yerevan"]
[Date "2019.01.13"]
[Round "2"]
[White "Mkrtchyan, Anahit D."]
[Black "Hakobyan, Astghik"]
[Result "1/2-1/2"]
[ECO "C07"]
[WhiteElo "1829"]
[BlackElo "1776"]
[Annotator "NA RC"]
[PlyCount "91"]
[EventDate "2019.01.12"]
[EventType "tourn"]
[EventCountry "ARM"]
[SourceTitle "playchess.com"]
[Source "ChessBase"]
[SourceQuality "1"]
[TimeControl "40/5400+30:1800+30"]

1. e4 {[%emt 0:00:00]} e6 {[%emt 0:00:00]} 2. d4 {[%emt 0:00:00]} d5 {[%emt 0:00:00]} 3. Nd2 {[%emt 0:00:00]} c5 {[%emt 0:00:00]} 4. exd5 {[%emt 0:00:00]} Qxd5 {[%emt 0:00:00]} 5. Ngf3 {[%emt 0:00:00]} cxd4 {[%emt 0:00:01]} 6. Bc4 {[%emt 0:00:00]} Qd6 {[%emt 0:00:06]} 7. O-O {[%emt 0:00:21]} Nf6 {[%emt 0:00:06]} 8. Nb3 {[%emt 0:00:06]} Nc6 {[%emt 0:00:07]} 9. Nbxd4 {[%emt 0:00:08]} Nxd4 {[%emt 0:00:08]} 10. Nxd4 {[%emt 0:00:04]} a6 {[%emt 0:00:11]} 11. Re1 {[%emt 0:01:01]} Be7 {[%emt 0:00:06]} 12. c3 {[%emt 0:00:35]} O-O {[%emt 0:00:25]} 13. Qf3 {[%emt 0:01:24]} Qc7 {[%emt 0:00:19]} 14. Bd3 {[%emt 0:03:06]} Rd8 {[%emt 0:11:38]} 15. Bf4 {[%emt 0:05:39]} Bd6 {[%emt 0:03:31]} 16. Bxd6 {[%emt 0:01:17]} Qxd6 {[%emt 0:03:36]} 17. Bc2 {[%emt 0:08:15]} Qc7 {[%emt 0:03:44]} 18. Rad1 {[%emt 0:03:33]} Bd7 {[%emt 0:02:41]} 19. Qg3 {[%emt 0:01:06]} Rac8 {[%emt 0:08:23]} 20. Qxc7 {[%emt 0:02:03]} Rxc7 {[%emt 0:00:13]} 21. Nf3 {[%emt 0:04:35]} Rdc8 {[%emt 0:10:15]} 22. Ne5 {[%emt 0:02:35]} Bc6 {[%emt 0:01:01]} 23. Rd2 {[%emt 0:05:16]} Bd5 {[%emt 0:04:54]} 24. Red1 {[%emt 0:02:59]} g6 {[%emt 0:01:55]} 25. Bb3 {[%emt 0:02:44]} b5 {[%emt 0:03:09]} 26. f3 {[%emt 0:03:14]} Kg7 {[%emt 0:04:59]} 27. Kf2 {[%emt 0:00:35]} a5 {[%emt 0:01:42]} 28. Rd4 {[%emt 0:12:52]} Rc5 {[%emt 0:15:59]} 29. Bxd5 {[%emt 0:03:17]} Rxd5 {[%emt 0:02:35]} 30. Rxd5 {[%emt 0:00:11]} Nxd5 {[%emt 0:00:05]} 31. Rd4 {[%emt 0:02:51]} Kf6 {[%emt 0:09:23]} 32. Ng4+ {[%emt 0:00:49]} Ke7 {[%emt 0:00:18]} 33. Ne3 {[%emt 0:00:22]} Nb6 {[%emt 0:00:24]} 34. g4 {[%emt 0:04:38]} h6 {[%emt 0:02:39]} 35. f4 {[%emt 0:01:20]} Na4 {[%emt 0:01:59]} 36. Rd2 {[%emt 0:03:29]} Nc5 {[%emt 0:01:07]} 37. Kf3 {[%emt 0:01:54]} f5 {[%emt 0:00:39]} 38. gxf5 {[%emt 0:01:26]} gxf5 {[%emt 0:00:25]} 39. Rd4 {[%emt 0:14:05]} Ne4 {[%emt 0:04:55]} 40. Nf1 {[%emt 0:00:00]} a4 {[%emt 0:00:00]} 41. a3 {[%emt 0:04:55]} Nd6 {[%emt 0:19:55]} 42. Ne3 {[%emt 0:04:05]} Rc5 {[%emt 0:03:40]} 43. Kg3 {[%emt 0:04:57]} Ne4+ {[%emt 0:01:50]} 44. Kf3 {[%emt 0:00:31]} Kf6 {[%emt 0:01:38]} 45. Rd8 {[%emt 0:01:18]} Rc6 {[%emt 0:01:49]} 46. Rd4 {[%emt 0:05:31]} 1/2-1/2

[Event "74th ARM-ch Women 2019"]
[Site "Yerevan"]
[Date "2019.01.14"]
[Round "3"]
[White "Ghukasyan, Siranush"]
[Black "Kursova, Maria"]
[Result "1/2-1/2"]
[ECO "B30"]
[WhiteElo "2226"]
[BlackElo "2279"]
[Annotator "NA"]
[PlyCount "92"]
[EventDate "2019.01.12"]
[EventType "tourn"]
[EventCountry "ARM"]
[SourceTitle "playchess.com"]
[Source "ChessBase"]
[SourceQuality "1"]
[TimeControl "40/5400+30:1800+30"]

1. e4 {[%emt 0:00:00]} c5 {[%emt 0:00:00]} 2. Nf3 {[%emt 0:00:00]} Nc6 {[%emt 0:00:00]} 3. Bb5 {[%emt 0:00:00]} e6 {[%emt 0:00:00]} 4. O-O {[%emt 0:00:00]} Nge7 {[%emt 0:00:07]} 5. d4 {[%emt 0:00:07]} cxd4 {[%emt 0:00:14] LiveBook: 212 Games} 6. Nxd4 {[%emt 0:00:06]} Qb6 {[%emt 0:00:29]} 7. Nxc6 {[%emt 0:00:13] B30: Sicilian: 2...Nc6 3 Bb5, lines without ...g6} bxc6 {[%emt 0:00:27]} 8. Bd3 {[%emt 0:00:06]} Ng6 {[%emt 0:00:27]} 9. c4 {[%emt 0:00:13]} Bc5 {[%emt 0:00:49]} 10. Nc3 {[%emt 0:01:09]} Qc7 {[%emt 0:00:38]} 11. Na4 {[%emt 0:10:25]} (11. Kh1 e5 12. Na4 Bd4 13. c5 d6 14. Be3 dxc5 15. Nxc5 Bxb2 {0-1 (56) Adams,M (2712)-Adhiban,B (2668) Douglas 2018}) 11... Bd6 $146 {[%emt 0:01:33]} ({Predecessor:} 11... Bd4 12. c5 O-O 13. Kh1 e5 14. Bc4 d6 {0-1 (37) Vasquez Schroder,R (2553)-Ynojosa Aponte,F (2395) Medellin 2017 CBM 179 [Ynojosa,F]}) 12. g3 {[%emt 0:05:13]} c5 {[%emt 0:02:22]} 13. Nc3 {[%emt 0:02:33]} a6 {[%emt 0:19:40]} 14. f4 {[%emt 0:01:07]} Bb7 {[%emt 0:00:58]} 15. Be3 {[%emt 0:04:13]} Qc6 {[%emt 0:11:07]} (15... Be7 $14) 16. Be2 {[%emt 0:02:47]} O-O {[%emt 0:03:10]} 17. Bf3 {[%emt 0:01:21]} Be7 {[%emt 0:06:57]} 18. h4 $16 {[%emt 0:04:37]} Qc7 {[%emt 0:03:36]} 19. h5 {[%emt 0:04:34]} Nh8 {[%emt 0:00:41]} 20. Qe2 {[%emt 0:03:20]} f6 {[%emt 0:15:11]} 21. Rad1 {[%emt 0:01:13]} Nf7 {[%emt 0:00:57]} 22. Qf2 {[%emt 0:04:29]} Rac8 {[%emt 0:03:51]} 23. Rd2 {[%emt 0:03:13]} Nd6 {[%emt 0:12:10]} 24. Rfd1 {[%emt 0:02:26]} Rfd8 {[%emt 0:00:15]} 25. b3 {[%emt 0:00:37]} f5 {[%emt 0:00:53]} 26. e5 {[%emt 0:01:51]} Nf7 {[%emt 0:00:45]} 27. Na4 {[%emt 0:07:18]} Bc6 {[%emt 0:05:09]} 28. Bxc6 {[%emt 0:01:27]} Qxc6 {[%emt 0:00:03]} 29. Qg2 {[%emt 0:00:38]} d6 {[%emt 0:01:04]} 30. Qxc6 {[%emt 0:04:10]} Rxc6 {[%emt 0:00:02]} 31. exd6 {[%emt 0:00:22]} Rdxd6 {[%emt 0:00:33]} 32. Rxd6 {[%emt 0:02:10]} Bxd6 {[%emt 0:00:18]} 33. a3 {[%emt 0:01:18]} Kf8 {[%emt 0:06:09]} 34. b4 {[%emt 0:01:12]} cxb4 {[%emt 0:00:05]} 35. c5 {[%emt 0:00:08]} Be7 {[%emt 0:03:09]} 36. axb4 {[%emt 0:00:06]} Ke8 {[%emt 0:00:08]} 37. Kg2 {[%emt 0:00:58]} Rc7 {[%emt 0:01:31]} 38. Bd4 {[%emt 0:03:50]} Bf6 {[%emt 0:00:58]} 39. Bxf6 {[%emt 0:04:10]} gxf6 {[%emt 0:00:02]} 40. Nb6 {[%emt 0:00:00]} Nd8 {[%emt 0:00:00]} 41. Nc4 {[%emt 0:23:52]} Nc6 {[%emt 0:16:35]} 42. Nd6+ {[%emt 0:00:23]} Ke7 {[%emt 0:00:04]} 43. Rb1 {[%emt 0:00:49]} Kd7 {[%emt 0:02:04]} 44. Rd1 {[%emt 0:02:03]} Ke7 {[%emt 0:00:10]} 45. Rb1 {[%emt 0:00:39]} Kd7 {[%emt 0:00:40]} 46. Rd1 {[%emt 0:02:08]} Ke7 {[%emt 0:00:16]} 1/2-1/2

[Event "74th ARM-ch Women 2019"]
[Site "Yerevan"]
[Date "2019.01.14"]
[Round "3"]
[White "Gaboyan, Susanna"]
[Black "Mkrtchyan, Anahit D."]
[Result "1-0"]
[ECO "A06"]
[WhiteElo "2111"]
[BlackElo "1829"]
[Annotator "NA"]
[PlyCount "89"]
[EventDate "2019.01.12"]
[EventType "tourn"]
[EventCountry "ARM"]
[SourceTitle "playchess.com"]
[Source "ChessBase"]
[SourceQuality "1"]
[TimeControl "40/5400+30:1800+30"]

1. Nf3 {[%emt 0:00:00]} d5 {[%emt 0:00:00]} 2. g3 {[%emt 0:00:33]} Nf6 {[%emt 0:00:00]} 3. Bg2 {[%emt 0:00:18]} Bf5 {[%emt 0:00:34]} 4. O-O {[%emt 0:00:55]} e6 {[%emt 0:00:22]} 5. d3 {[%emt 0:01:26]} Be7 {[%emt 0:00:58]} 6. c4 {[%emt 0:02:17]} c6 {[%emt 0:00:17]} 7. Qb3 {[%emt 0:02:08]} Qb6 {[%emt 0:02:00]} 8. Nc3 {[%emt 0:01:29]} Nbd7 {[%emt 0:02:09]} 9. cxd5 {[%emt 0:09:41]} Qxb3 {[%emt 0:03:22]} 10. axb3 {[%emt 0:00:11]} exd5 {[%emt 0:00:04]} 11. Nd4 {[%emt 0:00:47]} Be6 {[%emt 0:13:04]} 12. e4 {[%emt 0:09:56]} Nc5 {[%emt 0:14:31]} 13. exd5 {[%emt 0:03:26]} Bxd5 {[%emt 0:01:39]} 14. Nxd5 {[%emt 0:02:30]} Nxd5 $11 {[%emt 0:01:24]} 15. Bxd5 {[%emt 0:15:11]} cxd5 {[%emt 0:00:04]} 16. Re1 {[%emt 0:00:25]} Kf8 {[%emt 0:10:42]} 17. Nf5 {[%emt 0:06:26]} Bf6 {[%emt 0:01:06]} 18. Bd2 {[%emt 0:02:46]} Nxd3 {[%emt 0:09:26]} 19. Re3 {[%emt 0:00:11]} Ne5 {[%emt 0:10:31]} 20. Bb4+ {[%emt 0:01:12]} Kg8 {[%emt 0:02:27]} 21. Rxe5 {[%emt 0:01:11]} Bxe5 {[%emt 0:00:47]} 22. Ne7+ {[%emt 0:00:08]} Kf8 {[%emt 0:00:03]} 23. Ng6+ {[%emt 0:00:07]} Kg8 {[%emt 0:00:51]} 24. Nxe5 {[%emt 0:00:10]} f6 {[%emt 0:01:23]} 25. Nf3 {[%emt 0:01:30]} Kf7 {[%emt 0:00:14]} 26. Nd4 {[%emt 0:00:10]} a6 {[%emt 0:07:49]} 27. Nf5 {[%emt 0:00:27]} g6 {[%emt 0:05:17]} 28. Nd6+ {[%emt 0:00:28]} Kg7 {[%emt 0:00:06]} 29. Rc1 {[%emt 0:00:33]} g5 {[%emt 0:03:07]} 30. Rc7+ {[%emt 0:01:34]} Kg6 {[%emt 0:00:47]} 31. g4 {[%emt 0:00:11]} h5 {[%emt 0:01:46]} 32. h3 {[%emt 0:02:53]} hxg4 {[%emt 0:00:15]} 33. hxg4 {[%emt 0:00:02]} Rh7 {[%emt 0:02:17]} 34. Rc5 {[%emt 0:01:08]} Rh4 {[%emt 0:02:23]} 35. f3 {[%emt 0:01:32]} Rah8 {[%emt 0:00:52]} 36. Bc3 {[%emt 0:00:55]} Rh1+ {[%emt 0:00:49]} 37. Kf2 {[%emt 0:01:54]} R8h2+ {[%emt 0:01:00]} 38. Ke3 {[%emt 0:00:02]} Rh3 {[%emt 0:02:14]} 39. Rxd5 {[%emt 0:00:34]} Rf1 {[%emt 0:00:35]} 40. Rf5 {[%emt 0:00:00]} b5 {[%emt 0:00:00]} 41. Rxf6+ {[%emt 0:00:18]} Kh7 {[%emt 0:02:08]} 42. Ne4 {[%emt 0:00:06]} Kg8 {[%emt 0:01:46]} 43. Nxg5 {[%emt 0:00:07]} Rhh1 {[%emt 0:01:16]} 44. Rxa6 {[%emt 0:00:07]} Rd1 {[%emt 0:01:25]} 45. Ra8+ {[%emt 0:00:14]} 1-0

[Event "74th ARM-ch Women 2019"]
[Site "Yerevan"]
[Date "2019.01.14"]
[Round "3"]
[White "Grigoryan, Arpine"]
[Black "Gevorgyan, Maria"]
[Result "0-1"]
[ECO "B31"]
[WhiteElo "1962"]
[BlackElo "2228"]
[Annotator "NA"]
[PlyCount "66"]
[EventDate "2019.01.12"]
[EventType "tourn"]
[EventCountry "ARM"]
[SourceTitle "playchess.com"]
[Source "ChessBase"]
[SourceQuality "1"]
[TimeControl "40/5400+30:1800+30"]

1. e4 {[%emt 0:00:00]} c5 {[%emt 0:00:00]} 2. Nf3 {[%emt 0:00:00]} Nc6 {[%emt 0:00:00]} 3. Bb5 {[%emt 0:00:34]} g6 {[%emt 0:00:45]} 4. Bxc6 {[%emt 0:00:24]} dxc6 {[%emt 0:00:05]} 5. d3 {[%emt 0:00:15]} Bg7 {[%emt 0:00:27]} 6. h3 {[%emt 0:00:20]} Nf6 {[%emt 0:00:20]} 7. Nc3 {[%emt 0:08:33]} Nd7 {[%emt 0:00:17]} 8. Be3 {[%emt 0:00:16]} e5 {[%emt 0:00:10]} 9. Qd2 {[%emt 0:01:15]} h6 {[%emt 0:00:07]} 10. Nh2 {[%emt 0:02:43]} b6 {[%emt 0:03:01]} 11. O-O {[%emt 0:06:31]} Nf8 {[%emt 0:00:09]} 12. f4 {[%emt 0:03:37]} exf4 {[%emt 0:00:10]} 13. Bxf4 {[%emt 0:00:04]} Ne6 {[%emt 0:00:05]} 14. Be3 {[%emt 0:10:46] LiveBook: 3 Games} Nd4 {[%emt 0:00:12]} 15. Qf2 {[%emt 0:03:09]} (15. Rae1 $14) 15... O-O {[%emt 0:10:58]} 16. Qd2 {[%emt 0:11:00]} Kh7 {[%emt 0:04:16]} 17. e5 $11 {[%emt 0:10:56]} Qc7 {[%emt 0:02:41]} 18. Ne4 {[%emt 0:02:56]} Qxe5 {[%emt 0:20:24]} 19. Bf4 {[%emt 0:01:12]} Qd5 {[%emt 0:01:47]} 20. c4 {[%emt 0:16:52]} Qd8 {[%emt 0:03:37]} 21. Bd6 {[%emt 0:02:40]} Re8 {[%emt 0:06:25]} 22. Rxf7 {[%emt 0:02:41]} Rxe4 {[%emt 0:02:06]} 23. dxe4 {[%emt 0:00:20]} Qxd6 {[%emt 0:00:10]} 24. e5 {[%emt 0:03:11]} Qe6 {[%emt 0:03:15]} 25. Rf2 {[%emt 0:03:55]} Qxc4 {[%emt 0:02:55]} 26. Re1 {[%emt 0:01:56]} Qxa2 {[%emt 0:04:20]} 27. h4 {[%emt 0:01:45]} Bf5 {[%emt 0:04:48]} 28. g4 {[%emt 0:01:30]} Be6 {[%emt 0:02:41]} 29. h5 {[%emt 0:00:59]} gxh5 {[%emt 0:00:25]} 30. Qd3+ {[%emt 0:00:56]} Kh8 {[%emt 0:00:06]} 31. g5 {[%emt 0:02:04]} Qb3 {[%emt 0:00:33]} 32. Qxb3 {[%emt 0:01:13]} Bxb3 {[%emt 0:00:14]} 33. gxh6 {[%emt 0:00:33]} Bxh6 {[%emt 0:00:08]} 0-1

[Event "74th ARM-ch Women 2019"]
[Site "Yerevan"]
[Date "2019.01.14"]
[Round "3"]
[White "Hakobyan, Astghik"]
[Black "Mkrtchyan, Mariam"]
[Result "1-0"]
[ECO "B09"]
[WhiteElo "1776"]
[BlackElo "2098"]
[Annotator "NA"]
[PlyCount "95"]
[EventDate "2019.01.12"]
[EventType "tourn"]
[EventCountry "ARM"]
[SourceTitle "playchess.com"]
[Source "ChessBase"]
[SourceQuality "1"]
[TimeControl "40/5400+30:1800+30"]

1. e4 {[%emt 0:00:00]} d6 {[%emt 0:00:00]} 2. d4 {[%emt 0:00:00]} Nf6 {[%emt 0:00:00]} 3. Nc3 {[%emt 0:00:00]} g6 {[%emt 0:00:00]} 4. f4 {[%emt 0:00:00]} Bg7 {[%emt 0:00:04]} 5. Nf3 {[%emt 0:00:01] LiveBook: 5197 Games} O-O {[%emt 0:00:29]} 6. Bd3 {[%emt 0:00:06]} Nc6 {[%emt 0:00:37]} 7. e5 {[%emt 0:00:39]} dxe5 {[%emt 0:00:39]} 8. dxe5 {[%emt 0:00:05]} Nd5 {[%emt 0:02:50]} 9. Nxd5 {[%emt 0:00:15]} Qxd5 {[%emt 0:00:12]} 10. Qe2 {[%emt 0:00:36]} Be6 {[%emt 0:11:39]} 11. O-O {[%emt 0:02:03]} f6 {[%emt 0:10:40]} 12. Kh1 {[%emt 0:25:05]} (12. Rd1 $14) 12... fxe5 $11 {[%emt 0:13:09]} 13. f5 {[%emt 0:16:56]} gxf5 {[%emt 0:17:33]} 14. Ng5 {[%emt 0:00:14]} Nd4 {[%emt 0:01:53]} 15. Qh5 {[%emt 0:00:16]} h6 {[%emt 0:01:20]} 16. Nxe6 {[%emt 0:00:33]} Qxe6 {[%emt 0:01:09]} 17. b3 {[%emt 0:03:39]} Kh7 {[%emt 0:04:47]} 18. c3 {[%emt 0:01:46]} e4 {[%emt 0:03:31]} 19. Bc4 {[%emt 0:01:27]} Qg6 {[%emt 0:01:13]} 20. Qxg6+ {[%emt 0:01:06]} Kxg6 {[%emt 0:00:09]} 21. cxd4 {[%emt 0:00:08]} c5 {[%emt 0:00:36]} 22. Ba3 {[%emt 0:04:06]} Bxd4 {[%emt 0:05:49]} 23. Rad1 {[%emt 0:02:06]} Rf6 {[%emt 0:01:57]} 24. Bd5 {[%emt 0:04:49]} Rd6 {[%emt 0:03:05]} 25. Rxd4 {[%emt 0:12:20]} cxd4 {[%emt 0:01:54]} 26. Bxd6 {[%emt 0:00:07]} exd6 {[%emt 0:00:40]} 27. g4 {[%emt 0:00:21]} e3 {[%emt 0:02:43]} 28. gxf5+ {[%emt 0:00:32]} Kf6 {[%emt 0:00:15]} 29. Kg2 {[%emt 0:03:09]} Rc8 {[%emt 0:03:59]} 30. Bc4 {[%emt 0:01:28]} d5 {[%emt 0:04:18]} 31. Bd3 {[%emt 0:00:45]} Rc3 {[%emt 0:01:57]} 32. Rd1 {[%emt 0:00:05]} Ke5 {[%emt 0:03:24]} 33. Kf3 {[%emt 0:00:37]} a5 {[%emt 0:01:01]} 34. Ke2 {[%emt 0:02:06]} a4 {[%emt 0:01:10]} 35. Rb1 {[%emt 0:01:34]} a3 {[%emt 0:00:59]} 36. Rf1 {[%emt 0:01:12]} Rc6 {[%emt 0:00:51]} 37. Rg1 {[%emt 0:00:20]} h5 {[%emt 0:00:53]} 38. Rg6 {[%emt 0:01:53]} Rc1 {[%emt 0:00:58]} 39. Kf3 {[%emt 0:00:13]} Rc6 {[%emt 0:00:06]} 40. Rxc6 {[%emt 0:00:00]} bxc6 {[%emt 0:00:00]} 41. b4 {[%emt 0:02:09]} h4 {[%emt 0:08:00]} 42. Kg4 {[%emt 0:00:52]} Kf6 {[%emt 0:01:04]} 43. h3 {[%emt 0:00:16]} Ke5 {[%emt 0:01:04]} 44. Kg5 {[%emt 0:00:35]} e2 {[%emt 0:00:13]} 45. Bxe2 {[%emt 0:00:05]} Ke4 {[%emt 0:00:01]} 46. f6 {[%emt 0:00:13]} Ke3 {[%emt 0:00:03]} 47. Ba6 {[%emt 0:00:11]} d3 {[%emt 0:00:07]} 48. Bxd3 {[%emt 0:00:06]} 1-0

[Event "74th ARM-ch Women 2019"]
[Site "Yerevan"]
[Date "2019.01.15"]
[Round "4"]
[White "Mkrtchyan, Anahit D."]
[Black "Grigoryan, Arpine"]
[Result "1/2-1/2"]
[ECO "A48"]
[WhiteElo "1829"]
[BlackElo "1962"]
[Annotator "NA RC"]
[PlyCount "78"]
[EventDate "2019.01.12"]
[EventType "tourn"]
[EventCountry "ARM"]
[SourceTitle "playchess.com"]
[Source "ChessBase"]
[SourceQuality "1"]
[TimeControl "40/5400+30:1800+30"]

1. d4 {[%emt 0:00:00]} Nf6 {[%emt 0:00:00]} 2. Bf4 {[%emt 0:00:00]} g6 {[%emt 0:05:16]} 3. Nf3 {[%emt 0:00:05]} Bg7 {[%emt 0:00:08]} 4. e3 {[%emt 0:00:14]} O-O {[%emt 0:02:40]} 5. Bd3 {[%emt 0:00:26]} d6 {[%emt 0:02:06]} 6. Nbd2 {[%emt 0:02:35]} c5 {[%emt 0:07:28]} 7. c3 {[%emt 0:00:17]} Nc6 {[%emt 0:02:45]} 8. O-O $15 {[%emt 0:19:49]} e5 {[%emt 0:23:39]} 9. Bg5 {[%emt 0:01:06]} cxd4 {[%emt 0:01:08]} 10. exd4 {[%emt 0:00:27]} exd4 {[%emt 0:00:10]} 11. cxd4 {[%emt 0:04:57]} d5 {[%emt 0:01:12]} 12. Qb3 {[%emt 0:12:16]} Qd6 {[%emt 0:04:40]} 13. Rfe1 {[%emt 0:11:49]} Be6 {[%emt 0:11:54]} 14. Rac1 {[%emt 0:10:07]} Rab8 {[%emt 0:01:51]} 15. Bf1 {[%emt 0:03:29]} Ng4 {[%emt 0:10:57]} 16. h3 {[%emt 0:12:58]} Nxd4 {[%emt 0:00:25]} 17. Qa4 {[%emt 0:00:15]} Nxf3+ {[%emt 0:04:12]} 18. Nxf3 {[%emt 0:00:10]} Ne5 {[%emt 0:00:23]} 19. Bf4 {[%emt 0:04:39]} b5 {[%emt 0:05:02]} 20. Bxb5 {[%emt 0:04:05]} Rxb5 {[%emt 0:01:47]} 21. Bxe5 {[%emt 0:00:17]} Qb6 {[%emt 0:00:05]} 22. Bxg7 {[%emt 0:00:34]} Kxg7 {[%emt 0:00:06]} 23. b3 {[%emt 0:05:57]} Ra5 {[%emt 0:03:15]} 24. Qh4 {[%emt 0:00:59]} Rxa2 {[%emt 0:01:19]} 25. Ng5 {[%emt 0:00:16]} h6 {[%emt 0:00:05]} 26. Nxe6+ {[%emt 0:01:29]} fxe6 {[%emt 0:00:05]} 27. Rf1 {[%emt 0:00:41]} Rf7 {[%emt 0:01:00]} 28. Qg3 {[%emt 0:00:39]} Qd4 {[%emt 0:01:34]} 29. Rc8 {[%emt 0:00:40]} Qf4 {[%emt 0:01:03]} 30. Qc3+ {[%emt 0:01:24]} d4 {[%emt 0:00:05]} 31. Qe1 {[%emt 0:00:13]} d3 {[%emt 0:02:38]} 32. Qc3+ {[%emt 0:01:29]} e5 {[%emt 0:00:08]} 33. Rc7 {[%emt 0:00:53]} d2 {[%emt 0:02:40]} 34. Rxf7+ {[%emt 0:00:06]} Kxf7 {[%emt 0:00:06]} 35. Qc7+ {[%emt 0:00:11]} Kf6 {[%emt 0:01:14]} 36. Qd8+ {[%emt 0:00:09]} Kg7 {[%emt 0:01:09]} 37. Qe7+ {[%emt 0:00:06]} Qf7 {[%emt 0:00:58]} 38. Qxe5+ {[%emt 0:00:04]} Kh7 {[%emt 0:00:02]} 39. Qe3 {[%emt 0:02:23]} Rc2 {[%emt 0:02:59]} 1/2-1/2

[Event "74th ARM-ch Women 2019"]
[Site "Yerevan"]
[Date "2019.01.16"]
[Round "5"]
[White "Ghukasyan, Siranush"]
[Black "Mkrtchyan, Anahit D."]
[Result "1-0"]
[ECO "B17"]
[WhiteElo "2226"]
[BlackElo "1829"]
[Annotator "NA"]
[PlyCount "63"]
[EventDate "2019.01.12"]
[EventType "tourn"]
[EventCountry "ARM"]
[SourceTitle "playchess.com"]
[Source "ChessBase"]
[SourceQuality "1"]
[TimeControl "40/5400+30:1800+30"]

1. e4 {[%emt 0:00:48]} c6 {[%emt 0:00:00]} 2. d4 {[%emt 0:00:07]} d5 {[%emt 0:00:00]} 3. Nc3 {[%emt 0:00:04]} dxe4 {[%emt 0:00:00]} 4. Nxe4 {[%emt 0:00:05]} Nd7 {[%emt 0:00:00] LiveBook: 5807 Games} 5. Ng5 {[%emt 0:00:17]} g6 {[%emt 0:00:00] B17: Caro-Kann: Modern Line (4...Nd7)} 6. Bc4 {[%emt 0:01:30]} Nh6 {[%emt 0:00:05]} 7. c3 $146 {[%emt 0:03:15]} ({Predecessor:} 7. N1f3 Nb6 8. Bb3 Bg7 9. O-O O-O 10. h3 a5 11. a4 Nf5 12. c3 Nd5 13. Ne4 {0-1 (61) Movsesian,S (2665)-Adly,A (2589) Tsaghkadzor 2015}) 7... Bg7 {[%emt 0:00:13]} 8. Bxf7+ {[%emt 0:01:25]} Nxf7 {[%emt 0:01:48]} 9. Ne6 {[%emt 0:00:04]} Qa5 {[%emt 0:03:21]} 10. Nxg7+ {[%emt 0:00:17]} Kf8 {[%emt 0:01:49]} 11. Ne6+ {[%emt 0:00:08]} Kg8 {[%emt 0:00:17]} 12. Nf3 {[%emt 0:02:48]} Nf6 {[%emt 0:05:51]} 13. Nf4 {[%emt 0:01:42]} Kg7 {[%emt 0:03:08]} 14. O-O {[%emt 0:00:34]} Bf5 {[%emt 0:01:20]} 15. Re1 {[%emt 0:00:49]} Rhe8 {[%emt 0:00:15]} 16. Ne6+ {[%emt 0:03:03]} Bxe6 {[%emt 0:01:16]} 17. Rxe6 {[%emt 0:00:07]} Rad8 {[%emt 0:01:27]} 18. Qe2 {[%emt 0:02:22]} c5 {[%emt 0:04:32]} 19. dxc5 {[%emt 0:02:10]} Qxc5 {[%emt 0:00:07]} 20. Be3 {[%emt 0:00:50]} Qa5 {[%emt 0:05:57]} 21. Bd4 {[%emt 0:00:44]} Kf8 {[%emt 0:00:25]} 22. Re1 {[%emt 0:12:35]} Nd5 {[%emt 0:03:58]} 23. g3 {[%emt 0:01:08]} b5 $18 {[%emt 0:05:11]} (23... Nc7 $142 24. Rxe7 Qd5) 24. Ne5 {[%emt 0:04:38]} Qc7 {[%emt 0:24:57]} 25. Qf3 {[%emt 0:01:32]} Nf6 {[%emt 0:00:52]} 26. Nxf7 {[%emt 0:00:08]} Kxf7 {[%emt 0:01:35]} 27. Rxf6+ {[%emt 0:00:37]} Kg8 {[%emt 0:01:40]} 28. Rfe6 {[%emt 0:00:43]} b4 {[%emt 0:01:04]} 29. Qe4 {[%emt 0:00:53]} Kf7 {[%emt 0:01:40]} 30. Re3 {[%emt 0:00:12]} Rd6 {[%emt 0:01:36]} 31. Qf4+ {[%emt 0:00:16]} Kg8 {[%emt 0:00:08]} 32. Rxd6 {[%emt 0:00:13]} 1-0